bitfinex/quotes_ETHUSD_20260121
["timestamp","ask_amount","ask_price","bid_price","bid_amount"]
[1769005218629,22.9133905,2977.1,2974.6,12.40151673]
[1769005218830,22.9133905,2977.1,2974.7,1.57633986]
[1769005218831,12.83647003,2976.8,2974.7,1.57633986]
[1769005219177,0.556,2976.7,2974.7,15.76316161]
[1769005219466,9.259991,2976.3,2973.9,4.4725624]
[1769005219668,6.870891,2976.3,2974.1,12.40151673]
[1769005219870,1.9707361,2976.2,2974.1,1.68740162]
[1769005220055,7.47607,2975.6,2973.9,1.11]
[1769005220262,32.36553444,2975.3,2973.3,0.555]
[1769005220447,13.44402244,2975.3,2973.3,0.555]
[1769005221069,6.72201122,2975.3,2973.3,3.91823022]
[1769005221231,10.63901683,2975.3,2973.3,12.95651673]
[1769005221430,1.06390168,2975.2,2973.3,0.555]
[1769005221634,7.47455392,2975.1,2973.3,0.555]
[1769005221834,42.83647003,2975.0,2973.3,0.555]
[1769005222042,7.47455392,2974.3,2972.2,1e-08]
[1769005222243,20.07352852,2973.2,2970.9,0.001]
[1769005222484,30.0,2972.7,2970.9,0.001]
[1769005222684,23.351784,2972.6,2970.4,0.001]
[1769005222886,20.258193,2972.6,2970.4,0.001]
[1769005223207,0.556,2972.9,2970.7,12.95651673]
[1769005223359,0.39874531,2973.1,2971.3,12.40151673]
[1769005223688,6.72268906,2975.0,2971.8,1.68315151]
[1769005223871,6.72268906,2975.0,2971.6,24.27141]
[1769005223872,4.42502026,2975.2,2972.3,12.40151673]
[1769005224070,4.42502026,2975.2,2972.5,12.40151673]
[1769005224071,3.36111858,2975.2,2972.5,12.40151673]
[1769005224389,6.72268906,2975.0,2972.6,3.39766713]
[1769005224598,3.36080857,2975.5,2972.6,3.39766713]
[1769005224599,3.539,2976.1,2972.9,12.40151673]
[1769005224797,10.25920428,2976.1,2973.4,12.40151673]
[1769005224998,1.22319404,2976.0,2973.5,1.27378207]
[1769005225299,1.77919404,2976.0,2973.5,1.24015167]
[1769005225501,1.77919404,2976.0,2972.6,19.12963353]
[1769005225502,3.129928,2975.9,2972.6,6.7281168]
[1769005225660,1.22319404,2976.0,2972.9,12.40151673]
[1769005225998,30.128,2975.9,2973.1,12.40151673]
[1769005226159,0.128,2975.5,2973.2,0.03363379]
[1769005226359,12.96447003,2975.3,2972.3,12.40151673]
[1769005226560,47.36046325,2975.4,2972.4,1.27379451]
[1769005226561,9.233753,2975.1,2972.4,1.27379451]
[1769005226763,29.46192,2974.8,2971.7,3.36499932]
[1769005227022,7.47455392,2974.2,2971.7,0.5]
[1769005227225,6.087964,2974.6,2971.7,12.90151673]
[1769005227375,0.128,2974.8,2971.7,12.90151673]
[1769005227583,8.082435,2974.4,2972.6,0.555]
[1769005227810,27.281205,2974.2,2972.6,0.555]
[1769005228113,0.8638435,2974.3,2972.6,0.555]
[1769005228316,6.72449734,2974.2,2972.6,0.555]
[1769005228675,13.163915,2974.1,2972.6,0.555]
[1769005228998,0.556,2974.0,2972.6,0.555]
[1769005229194,10.08674601,2974.2,2972.6,0.555]
[1769005229379,3.48958644,2974.8,2972.7,0.03363945]
[1769005229380,0.128,2974.8,2972.7,0.03363945]
[1769005229594,6.72291504,2974.9,2972.7,0.03363945]
[1769005229595,0.6850915,2974.7,2972.7,0.03363945]
[1769005229792,0.6850915,2974.7,2972.7,12.43515618]
[1769005230013,3.36145752,2974.9,2972.7,12.40151673]
[1769005230209,6.72291504,2974.9,2972.7,12.40151673]
[1769005230501,2.095,2974.8,2972.7,15.76542716]
[1769005230902,0.556,2974.8,2972.7,15.76542716]
[1769005231202,0.556,2974.8,2972.7,15.76542315]
[1769005231503,1.06403726,2974.7,2972.8,14.12269737]
[1769005231737,0.556,2974.9,2972.8,14.08905905]
[1769005231909,0.556,2974.9,2972.6,1.11]
[1769005232111,0.556,2974.8,2972.7,3.39758468]
[1769005232426,0.128,2975.5,2972.9,3.36371892]
[1769005232649,7.47455392,2975.7,2972.9,3.36371892]
[1769005232650,3.36089265,2975.4,2973.0,12.43515278]
[1769005232948,0.33608927,2975.3,2973.2,12.40151673]
[1769005233111,0.33608927,2975.3,2973.1,2.25263095]
[1769005233112,3.36010214,2976.1,2973.4,12.40151673]
[1769005233452,6.72020428,2976.1,2973.6,12.40151673]
[1769005233748,30.0,2976.0,2973.7,0.03362814]
[1769005233910,2.055,2976.0,2973.7,0.03362814]
[1769005234093,1.21353064,2975.9,2973.7,0.48066303]
[1769005234293,1.21353064,2975.9,2973.7,12.88217976]
[1769005234529,3.36010214,2976.1,2973.9,12.40151673]
[1769005235027,0.128,2975.9,2973.2,3.3633673]
[1769005235225,23.375039,2975.8,2973.3,3.36319118]
[1769005235425,0.128,2975.7,2973.7,0.555]
[1769005235627,30.0,2975.4,2973.7,0.555]
[1769005235926,0.128,2975.0,2972.7,0.555]
[1769005236119,0.128,2974.8,2972.7,0.555]
[1769005236321,10.08538962,2974.6,2972.7,0.555]
[1769005236565,2.154,2974.5,2972.7,0.555]
[1769005236856,1.56011862,2974.4,2972.7,0.555]
[1769005237059,0.556,2974.3,2972.7,0.555]
[1769005237501,1.56011862,2974.4,2972.7,0.555]
[1769005237638,0.556,2974.2,2972.7,0.555]
[1769005237832,1.56011862,2974.4,2972.8,0.03363832]
[1769005238062,6.72359308,2974.6,2972.9,0.45075835]
[1769005238264,4.48975,2974.5,2972.8,0.03363832]
[1769005238473,10.08538962,2974.6,2972.7,1.11]
[1769005238657,4.237,2974.5,2972.7,1.11]
[1769005239270,0.16799998,2972.6,2971.5,15.76682044]
[1769005239580,0.16799998,2972.6,2970.8,12.40151673]
[1769005239884,0.16799998,2972.6,2971.4,0.5]
[1769005240061,0.16799998,2972.6,2971.5,3.36522252]
[1769005240364,0.16799998,2972.6,2971.5,3.92022252]
[1769005240569,0.16799998,2972.6,2971.5,7.28552623]
[1769005240737,0.16799998,2972.6,2971.6,2.0187043]
[1769005241340,6.72592238,2973.6,2971.8,12.40151673]
[1769005241671,6.72592238,2973.6,2971.6,2.0187043]
[1769005241871,6.72592238,2973.6,2971.5,7.28552623]
[1769005242074,10.08888357,2973.6,2971.5,0.555]
[1769005242288,0.128,2973.4,2971.5,0.555]
[1769005242494,0.128,2972.9,2971.2,0.387]
[1769005242778,0.128,2972.5,2970.7,0.21964092]
[1769005242987,30.0,2972.4,2970.7,0.21964092]
[1769005243399,0.128,2972.5,2970.7,0.21964092]
[1769005243594,24.190319,2972.2,2970.7,0.21664092]
[1769005243798,19.098417,2972.2,2970.7,0.20565427]
[1769005244002,17.059633,2972.0,2970.7,0.20565427]
[1769005244299,1.9654417,2972.1,2970.7,0.20465427]
[1769005244503,0.556,2972.0,2970.7,0.20465427]
[1769005244729,2.65345,2972.3,2970.7,0.20465427]
[1769005245094,2.65345,2972.3,2970.7,0.75965427]
[1769005245413,0.128,2972.0,2970.7,0.59656631]
[1769005245579,0.128,2972.0,2970.7,0.58856631]
[1769005245779,0.128,2972.0,2970.7,0.56460255]
[1769005246223,0.556,2971.9,2970.7,0.56460255]
[1769005246523,0.556,2971.8,2970.7,0.56460255]
[1769005246819,0.556,2971.8,2968.8,3.36835632]
[1769005246820,42.33469083,2971.6,2968.3,12.76788395]
[1769005247118,9.542136,2970.8,2969.5,0.554]
[1769005247474,9.542136,2970.8,2968.3,12.76788395]
[1769005247682,0.556,2970.7,2968.3,12.76788395]
[1769005248005,8.533307,2970.6,2968.3,12.76788395]
[1769005248190,0.556,2970.5,2968.6,3.36858427]
[1769005248402,3.36575679,2971.1,2967.7,7.47080139]
[1769005248584,0.33657568,2971.0,2969.0,12.76788395]
[1769005248902,10.09523166,2971.7,2969.0,12.76788395]
[1769005249111,0.128,2971.6,2969.0,12.76788395]
[1769005249291,21.485073,2971.5,2969.0,12.76788395]
[1769005249500,30.0,2971.3,2968.3,12.76788395]
[1769005249707,0.128,2970.9,2968.3,12.76788395]
[1769005249910,17.85334,2970.6,2968.9,0.556]
[1769005250106,0.128,2970.8,2968.9,0.556]
[1769005250427,0.128,2970.4,2968.9,2e-08]
[1769005250613,4.899678,2970.3,2968.9,2e-08]
[1769005250954,0.4899678,2970.2,2968.9,2e-08]
[1769005251110,0.556,2970.4,2968.9,2e-08]
[1769005252241,10.821458,2970.3,2968.9,2e-08]
[1769005252540,10.10032992,2970.2,2968.9,0.555]
[1769005252722,0.556,2970.1,2968.9,0.555]
[1769005252903,1.06563299,2970.0,2968.9,0.555]
[1769005253245,0.556,2969.9,2968.9,0.555]
[1769005254013,0.556,2969.9,2967.5,12.76788395]
[1769005254317,30.0,2969.8,2967.5,12.76788395]
[1769005254532,30.0,2969.6,2967.5,12.76788395]
[1769005254743,3.39115248,2969.5,2967.6,14.04467235]
[1769005254937,3.737,2969.6,2967.6,14.04467235]
[1769005255243,0.557,2969.4,2967.6,14.04467235]
[1769005255631,0.557,2969.8,2967.6,14.04467235]
[1769005256536,6.734687,2969.7,2967.7,19.50710961]
[1769005256740,6.734687,2969.7,2967.7,16.13749678]
[1769005256917,0.7291687,2969.6,2967.8,14.50931247]
[1769005257116,1.2861687,2969.6,2967.8,14.50931247]
[1769005257545,0.557,2969.5,2967.8,14.50931247]
[1769005257715,0.7291687,2969.6,2967.8,14.50931247]
[1769005258054,0.557,2969.9,2967.8,14.50931247]
[1769005258226,6.73196674,2970.9,2968.0,11.77941219]
[1769005258426,3.022101,2971.5,2968.5,0.2335703]
[1769005258639,0.557,2971.4,2969.0,11.77941219]
[1769005259152,0.128,2971.2,2969.0,11.77941219]
[1769005259446,12.222633,2971.0,2969.1,1.51476631]
[1769005259650,30.0,2970.9,2968.9,0.555]
[1769005260418,4.259003,2970.6,2968.9,0.555]
[1769005260651,3.36637588,2970.6,2969.0,11.77941219]
[1769005260953,0.002,2970.7,2969.1,13.68649513]
[1769005262268,3.36821562,2970.7,2969.1,14.24149513]
[1769005262424,6.7344256,2970.7,2969.1,14.24149513]
[1769005262621,10.361755,2970.6,2969.1,0.555]
[1769005262819,0.002,2970.7,2969.1,0.555]
[1769005263025,0.002,2970.7,2969.2,11.77941219]
[1769005263455,13.18627461,2972.8,2969.2,13.45136754]
[1769005263456,3.36473755,2972.0,2969.2,13.45136754]
[1769005263760,0.3667,2972.8,2970.3,1.63134945]
[1769005264056,30.0,2973.5,2970.4,11.77941219]
[1769005264265,0.557,2973.6,2970.5,1.17794122]
[1769005264266,19.421276,2973.0,2970.5,1.17794122]
[1769005264425,19.421276,2973.0,2969.9,11.77941219]
[1769005264624,10.09115676,2972.9,2970.1,11.77941219]
[1769005264965,9.585057,2972.8,2970.1,11.77941219]
[1769005265256,3.576816,2972.8,2970.1,11.77941219]
[1769005266071,7.47080139,2972.5,2970.1,11.77941219]
[1769005266354,16.594028,2972.2,2970.1,11.77941219]
[1769005266522,13.45804452,2972.2,2970.1,11.77941219]
[1769005266722,11.297651,2972.1,2970.1,11.77941219]
[1769005266929,3.063232,2972.1,2970.1,15.14629865]
[1769005267130,3.063232,2972.1,2970.1,12.33441219]
[1769005267352,11.080186,2971.9,2970.1,12.33441219]
[1769005267656,11.080186,2971.9,2970.1,0.555]
[1769005267827,2.627,2971.9,2970.1,0.555]
[1769005268023,7.942644,2971.9,2970.1,0.555]
[1769005268224,1.65212765,2972.0,2970.1,12.33441219]
[1769005268569,10.65053339,2972.2,2970.3,11.77941219]
[1769005269070,5.831216,2972.1,2970.2,1.28894122]
[1769005269272,5.831216,2972.1,2970.1,0.555]
[1769005269572,5.831216,2972.1,2970.2,0.555]
[1769005270355,6.72902226,2972.2,2970.3,11.77941219]
[1769005270674,10.09421265,2972.0,2970.3,11.77941219]
[1769005270876,10.09421265,2972.0,2970.2,0.555]
[1769005271077,1.06512126,2971.9,2970.2,0.555]
[1769005271443,1.06512126,2971.9,2970.2,12.33441219]
[1769005271775,1.06512126,2971.9,2970.2,0.555]
[1769005271776,11.699836,2971.8,2970.2,0.555]
[1769005271986,33.539,2971.7,2968.9,12.33441219]
[1769005272140,6.108033,2971.3,2968.9,12.33441219]
[1769005272474,0.128,2971.4,2968.9,12.33441219]
[1769005272475,6.413009,2971.1,2968.9,12.33441219]
[1769005272676,5.378954,2970.9,2968.9,0.555]
[1769005273399,2.039325,2970.9,2968.9,0.555]
[1769005273746,2.039325,2970.9,2970.3,0.001]
[1769005273949,2.039325,2970.9,2968.9,0.555]
[1769005273950,3.539,2970.8,2968.9,0.555]
[1769005274253,30.0,2970.5,2968.9,0.555]
[1769005274444,0.02892726,2968.9,2968.2,11.77941219]
[1769005274643,3.36836432,2968.8,2967.7,0.555]
[1769005274875,0.02892726,2968.9,2967.7,0.555]
[1769005275070,3.39723758,2968.9,2967.7,0.555]
[1769005275274,0.02892726,2968.9,2967.7,0.555]
[1769005275584,3.39717812,2968.9,2967.7,0.555]
[1769005275882,0.33971781,2968.8,2967.7,0.555]
[1769005276694,0.33971781,2968.8,2967.7,1.11]
[1769005276867,3.3684276,2968.8,2967.7,1.11]
[1769005277253,0.02892726,2968.9,2967.7,1.11]
[1769005277454,3.39717812,2968.9,2967.7,1.11]
[1769005278189,0.02892726,2968.9,2967.7,1.11]
[1769005278695,10.13374804,2968.9,2967.7,1.11]
[1769005278855,21.2077648,2968.8,2967.0,0.001]
[1769005279054,1.0133748,2968.8,2967.5,0.387]
[1769005279368,1.0133748,2968.8,2967.5,0.386]
[1769005279684,1.0133748,2968.8,2967.5,0.38164759]
[1769005280890,3.92547778,2968.7,2967.5,0.38164759]
[1769005281061,0.49388526,2968.6,2967.5,0.38164759]
[1769005281867,0.49388526,2968.6,2967.5,0.93664759]
[1769005282073,0.557,2968.5,2967.5,0.93664759]
[1769005282759,6.73763642,2968.4,2967.5,0.93264759]
[1769005282978,6.73763642,2968.4,2967.5,0.92464759]
[1769005283154,0.72946364,2968.3,2967.5,0.91664759]
[1769005283479,0.72946364,2968.3,2967.5,0.90564759]
[1769005283681,0.72946364,2968.3,2967.5,0.89764759]
[1769005283994,0.72946364,2968.3,2967.5,1.44164759]
[1769005284155,0.72946364,2968.3,2965.9,12.64375253]
[1769005284356,1.08359183,2968.2,2966.3,3.3711683]
[1769005284551,1.08359183,2968.2,2966.2,12.64295253]
[1769005284797,10.10747616,2968.1,2966.2,12.64295253]
[1769005286003,3.847242,2968.0,2966.2,12.64295253]
[1769005286151,3.847242,2968.0,2965.9,0.0008]
[1769005286152,16.55402838,2968.0,2965.9,0.0008]
[1769005286354,7.47080139,2967.5,2965.9,0.0008]
[1769005286686,0.557,2967.4,2965.9,0.5558]
[1769005286884,6.74013412,2967.3,2965.9,0.5558]
[1769005287086,3.49715872,2968.1,2966.0,12.64295253]
[1769005287254,3.49715872,2968.1,2966.2,12.64295253]
[1769005287255,3.900316,2968.0,2966.2,12.64295253]
[1769005287454,0.557,2968.0,2966.2,12.64295253]
[1769005288290,0.002,2968.6,2966.2,12.64295253]
[1769005288291,4.09844269,2968.3,2966.2,12.64295253]
[1769005288585,6.7379581,2968.3,2966.2,12.64295253]
[1769005288787,6.7379581,2968.3,2966.4,12.64295253]
[1769005288988,10.10693715,2968.3,2966.4,12.64295253]
[1769005289195,10.10693715,2968.3,2966.4,13.19795253]
[1769005289397,1.06639372,2968.2,2966.5,1.31979525]
[1769005289696,1.06639372,2968.2,2966.4,0.555]
[1769005290980,0.128,2967.9,2966.4,0.555]
[1769005291690,0.128,2967.9,2966.4,1.11]
[1769005292297,0.557,2967.8,2966.4,13.75295253]
[1769005292512,0.557,2967.8,2966.4,1.11]
[1769005292797,3.36961283,2967.7,2966.4,1.11]
[1769005293166,3.247924,2967.6,2966.4,1.11]
[1769005293366,3.247924,2967.6,2966.4,1e-08]
[1769005293568,30.0,2967.4,2966.4,1e-08]
[1769005293791,3.0128,2967.3,2966.4,1e-08]
[1769005293992,3.0128,2967.3,2965.9,0.5558]
[1769005293993,30.0,2967.4,2965.9,0.5534]
[1769005294302,30.0,2967.4,2965.9,0.547]
[1769005294466,30.0,2967.4,2965.9,0.5414]
[1769005294671,30.0,2967.4,2965.9,0.5366]
[1769005294894,13.48026824,2967.3,2965.9,0.5318]
[1769005295194,10.948716,2967.1,2965.2,12.50471277]
[1769005295494,10.948716,2967.1,2965.0,0.0008]
[1769005295495,0.128,2967.0,2965.0,0.0008]
[1769005295714,1.34802682,2967.2,2965.3,3.37232572]
[1769005295869,12.78147,2967.0,2965.4,12.59295253]
[1769005296076,12.78147,2967.0,2965.0,0.0008]
[1769005296077,12.03757,2967.0,2965.0,0.0008]
[1769005296297,1.259457,2966.9,2965.0,1.26517525]
[1769005296600,30.0,2967.0,2965.4,0.051]
[1769005296777,10.11156423,2966.9,2965.0,1.09686576]
[1769005296968,0.128,2966.5,2964.4,0.18890091]
[1769005297175,0.128,2966.3,2964.4,0.18890091]
[1769005297503,0.557,2966.2,2964.4,0.18890091]
[1769005298028,16.85260705,2966.9,2964.5,12.64295253]
[1769005298029,6.74104282,2966.9,2964.5,12.64295253]
[1769005298167,7.19706,2966.8,2965.1,12.14345253]
[1769005298369,7.29804282,2966.9,2965.2,1.21434525]
[1769005298370,1.44951028,2966.7,2965.2,1.21434525]
[1769005298803,3.37086226,2966.6,2965.2,1.76934525]
[1769005299006,17.01581723,2968.0,2965.3,12.64295253]
[1769005299207,3.36927223,2968.0,2965.3,12.64295253]
[1769005299508,2.120368,2967.8,2965.3,12.64295253]
[1769005299821,0.2677368,2967.7,2965.4,14.75867307]
[1769005299969,2.32672,2967.7,2965.4,14.75867307]
[1769005300172,0.002,2967.1,2965.4,14.75867307]
[1769005301084,0.002,2967.1,2965.6,12.64295253]
[1769005301713,0.557,2967.9,2965.6,12.64295253]
[1769005302001,0.557,2967.9,2965.8,12.64295253]
[1769005302332,0.002,2968.6,2965.8,12.64295253]
[1769005302333,0.002,2968.6,2966.2,12.64295253]
[1769005302469,0.002,2968.6,2966.4,12.64295253]
[1769005302671,0.557,2969.4,2967.0,12.64295253]
[1769005302906,0.557,2969.4,2967.2,12.64295253]
[1769005303120,0.557,2969.4,2967.4,12.64295253]
[1769005303294,0.002,2970.0,2967.6,12.64295253]
[1769005303494,3.36901043,2970.0,2967.6,12.64295253]
[1769005303811,0.002,2970.0,2967.8,12.64295253]
[1769005304113,6.471829,2971.7,2968.6,12.64295253]
[1769005304268,4.14959,2971.7,2968.8,12.64295253]
[1769005304470,1.1436518,2971.6,2969.0,12.64295253]
[1769005304976,1.1436518,2971.6,2969.2,12.64295253]
[1769005305174,4.50886252,2971.6,2969.4,12.64295253]
[1769005305385,3.36521072,2971.6,2969.4,12.64295253]
[1769005305582,13.46082262,2971.6,2969.4,12.64295253]
[1769005305881,18.021744,2971.1,2968.8,12.00679649]
[1769005306111,0.128,2971.3,2968.9,0.555]
[1769005306438,2.649628,2971.2,2969.0,12.00679649]
[1769005306621,12.598814,2971.0,2969.0,12.00679649]
[1769005306813,12.598814,2971.0,2968.9,0.555]
[1769005307131,13.59283992,2970.7,2968.9,0.555]
[1769005307333,30.0,2970.6,2968.9,0.555]
[1769005307504,30.0,2970.4,2967.8,11.83879649]
[1769005307840,0.557,2970.5,2967.8,11.83879649]
[1769005307841,30.0,2970.2,2967.8,13.41430279]
[1769005308002,13.737946,2970.2,2967.8,11.83795767]
[1769005308204,3.488576,2970.0,2967.8,11.83795767]
[1769005308435,3.488576,2970.0,2967.8,15.76238239]
[1769005308633,4.406918,2970.6,2968.5,12.00679649]
[1769005308846,0.557,2970.6,2968.5,12.00679649]
[1769005309045,6.7330999,2970.4,2968.5,12.00679649]
[1769005309541,6.7330999,2970.4,2968.6,12.00679649]
[1769005309953,1.06556299,2970.5,2968.6,12.00679649]
[1769005310133,0.557,2970.6,2968.6,12.00679649]
[1769005310501,3.36540425,2971.5,2968.8,12.00679649]
[1769005310761,0.557,2972.1,2969.0,12.00679649]
[1769005310905,0.128,2971.9,2969.0,12.00679649]
[1769005311106,0.128,2971.9,2969.2,12.00679649]
[1769005311107,10.09489197,2971.8,2969.2,12.00679649]
[1769005311325,1.0222892,2971.7,2969.4,12.00679649]
[1769005313173,4.38737703,2971.7,2969.6,12.00679649]
[1769005313330,3.36508783,2971.7,2969.6,12.00679649]
[1769005313661,6.73217566,2971.7,2969.6,12.00679649]
[1769005314507,3.36708783,2971.7,2969.6,12.00679649]
[1769005314826,0.002,2971.7,2969.6,12.00679649]
[1769005315027,0.002,2971.7,2969.8,12.00679649]
[1769005315240,0.002,2971.7,2970.0,12.00679649]
[1769005315747,0.002,2971.7,2970.0,12.56179649]
[1769005316243,0.002,2971.7,2970.0,0.555]
[1769005316244,24.156114,2971.6,2970.0,0.555]
[1769005316431,8.777945,2971.6,2970.0,0.555]
[1769005316612,0.8779945,2971.5,2970.0,0.555]
[1769005317358,6.910056,2971.6,2970.0,0.555]
[1769005318150,13.46230888,2971.7,2970.0,0.555]
[1769005318151,10.09723166,2971.7,2970.0,0.555]
[1769005318453,10.09723166,2971.7,2970.0,1.11]
[1769005318662,6.73215444,2971.7,2970.0,1.11]
[1769005318947,6.73215444,2971.7,2970.1,0.0336689]
[1769005319255,10.09591113,2971.5,2970.0,1.11]
[1769005319962,6.73060742,2971.5,2970.0,1.11]
[1769005320155,6.73060742,2971.5,2970.0,13.92234845]
[1769005320658,4.03841877,2971.6,2970.2,12.81234845]
[1769005320970,0.40404188,2971.5,2970.2,12.81234845]
[1769005321189,0.67321544,2971.6,2970.3,12.84601508]
[1769005321343,0.67321544,2971.6,2970.4,12.81234845]
[1769005321532,0.002,2971.7,2970.4,12.81234845]
[1769005322644,0.002,2971.7,2970.5,0.03366436]
[1769005322849,0.002,2971.7,2970.5,12.84601281]
[1769005323060,0.002,2971.7,2970.5,12.81234845]
[1769005323359,0.002,2971.7,2970.6,0.03366323]
[1769005323560,0.002,2971.7,2970.6,12.84601168]
[1769005323729,0.002,2971.7,2970.6,12.81234845]
[1769005324138,0.002,2971.7,2970.7,14.85603176]
[1769005324336,0.002,2971.7,2970.5,0.555]
[1769005325109,0.002,2971.7,2970.6,12.84601168]
[1769005325314,0.002,2971.7,2970.6,12.81234845]
[1769005325665,0.002,2971.7,2970.6,13.36734845]
[1769005325870,0.002,2971.4,2970.6,13.36734845]
[1769005326479,0.002,2971.6,2970.7,12.84601054]
[1769005326684,0.002,2971.6,2970.7,14.88121046]
[1769005326865,0.002,2971.6,2970.7,12.81234845]
[1769005327071,0.002,2971.6,2970.6,0.555]
[1769005328415,0.002,2971.6,2970.6,1.11]
[1769005328917,0.002,2971.6,2970.6,13.92234845]
[1769005330507,0.002,2971.6,2970.6,1.11]
[1769005330666,0.002,2971.6,2970.6,0.55500001]
[1769005331064,10.527798,2971.5,2970.0,1.665]
[1769005331299,30.0,2971.3,2969.1,12.81234845]
[1769005331520,22.44326,2970.8,2969.4,1e-08]
[1769005331674,9.015834,2970.7,2968.5,16.73597363]
[1769005331874,9.015834,2970.7,2968.6,0.03368591]
[1769005331875,7.439954,2970.7,2968.6,0.03368591]
[1769005332073,0.128,2970.9,2968.7,3.36847778]
[1769005332074,6.7326466,2970.6,2968.7,3.36847778]
[1769005332310,0.67326466,2970.5,2968.8,14.4674833]
[1769005332607,0.67326466,2970.5,2968.8,12.81234845]
[1769005332965,0.67326466,2970.5,2968.8,13.36734845]
[1769005333567,0.557,2971.0,2969.0,12.81234845]
[1769005333803,4.688575,2970.9,2968.8,0.555]
[1769005334112,11.382854,2970.6,2968.8,0.555]
[1769005334293,6.654889,2970.6,2968.8,0.555]
[1769005334470,3.569643,2970.6,2968.8,0.555]
[1769005334674,1.70344829,2970.5,2968.8,0.555]
[1769005335076,1.70344829,2970.5,2968.9,0.0336825]
[1769005335275,1.70344829,2970.5,2968.9,12.84603095]
[1769005335583,3.36620998,2970.7,2968.9,13.36734845]
[1769005335797,0.002,2971.6,2968.9,13.36734845]
[1769005336105,6.73060742,2971.5,2969.1,12.88358281]
[1769005336270,3.36530371,2971.5,2969.3,12.88358281]
[1769005336474,3.92419787,2971.6,2969.5,12.88358281]
[1769005336790,0.39261979,2971.5,2969.7,12.88358281]
[1769005337001,0.002,2971.7,2970.0,12.88358281]
[1769005337305,3.36417157,2972.5,2970.1,12.91725171]
[1769005337510,6.72834314,2972.5,2970.1,12.88358281]
[1769005337731,7.77223512,2972.6,2970.1,12.88358281]
[1769005338009,0.002,2972.7,2970.8,12.88358281]
[1769005338312,0.002,2972.7,2971.0,12.88358281]
[1769005338515,0.002,2971.5,2971.0,12.88358281]
[1769005338829,13.45035136,2973.9,2970.9,3.09308206]
[1769005338830,0.002,2974.1,2972.1,12.88358281]
[1769005338978,0.002,2974.1,2972.3,12.88358281]
[1769005339474,6.72251298,2975.1,2972.3,13.24515311]
[1769005339700,0.6722513,2975.0,2972.5,12.88358281]
[1769005340012,9.89881604,2974.9,2972.6,12.88358281]
[1769005340230,6.72291504,2974.9,2972.6,12.88358281]
[1769005340397,6.72291504,2974.9,2972.6,13.43858281]
[1769005340719,0.73951663,2974.8,2972.8,12.88358281]
[1769005340931,8.864146,2974.7,2972.6,0.555]
[1769005341077,3.555,2974.7,2972.6,0.555]
[1769005341388,0.73951663,2974.8,2972.6,13.43858281]
[1769005342108,3.36168353,2974.7,2972.8,12.88358281]
[1769005342412,3.36168353,2974.7,2972.9,14.84473014]
[1769005342913,4.127793,2975.2,2972.9,15.39973014]
[1769005343111,3.36077251,2975.6,2972.9,15.39973014]
[1769005343312,3.36077251,2975.6,2973.1,12.88358281]
[1769005343510,0.556,2975.7,2972.9,2.51614733]
[1769005343511,3.91657675,2975.7,2973.3,12.88358281]
[1769005343737,0.39165768,2975.6,2973.5,12.88358281]
[1769005344021,0.39165768,2975.6,2973.9,10.08776352]
[1769005344182,0.002,2975.9,2974.2,12.88358281]
[1769005344613,0.002,2976.1,2974.3,0.556]
[1769005344781,0.002,2976.2,2974.4,13.24515311]
[1769005345124,0.002,2976.2,2974.4,13.01158281]
[1769005345291,0.002,2976.2,2974.6,12.88358281]
[1769005345498,0.002,2976.2,2974.8,12.88358281]
[1769005345891,0.002,2976.4,2974.8,12.88358281]
[1769005347039,0.002,2976.4,2974.4,0.555]
[1769005347497,26.037347,2976.3,2974.4,0.555]
[1769005347696,14.207376,2976.2,2974.4,0.555]
[1769005347898,14.014,2976.0,2974.4,0.555]
[1769005348105,10.08098388,2975.9,2974.4,0.555]
[1769005348420,3.1597096,2976.1,2974.4,13.43858281]
[1769005348421,3.36021674,2976.0,2974.4,13.43858281]
[1769005348592,6.72043348,2976.0,2974.4,13.43858281]
[1769005348990,6.7197527,2976.3,2974.5,12.88358281]
[1769005349195,10.07962905,2976.3,2974.4,0.555]
[1769005349894,6.7197527,2976.3,2974.4,13.43858281]
[1769005350102,6.72020428,2976.1,2974.4,13.99358281]
[1769005350302,10.08030642,2976.1,2974.4,1.11]
[1769005350617,10.08230642,2976.1,2974.4,1.11]
[1769005351019,2.089474,2976.0,2974.4,1.11]
[1769005351203,1.55318826,2975.9,2974.4,1.11]
[1769005351741,1.55318826,2975.9,2974.5,12.88358281]
[1769005351938,0.002,2976.3,2974.5,12.88358281]
[1769005352150,0.002,2976.3,2974.7,12.88358281]
[1769005352769,15.085161,2976.2,2974.5,0.555]
[1769005352911,26.422672,2976.1,2974.4,1e-08]
[1769005353248,3.39115248,2976.0,2974.4,1e-08]
[1769005353405,0.002,2976.3,2974.4,1e-08]
[1769005353806,11.82971999,2976.1,2974.4,1e-08]
[1769005354116,9.547256,2975.8,2974.4,1e-08]
[1769005354336,4.968256,2975.8,2974.4,1e-08]
[1769005354506,2.248256,2975.8,2974.4,1e-08]
[1769005354707,1.56895678,2975.7,2974.4,1e-08]
[1769005354901,1.56895678,2975.7,2974.4,0.55500001]
[1769005355608,6.69628,2975.6,2974.4,0.55500001]
[1769005355830,6.69628,2975.6,2973.3,16.2468333]
[1769005355831,0.12803109,2974.4,2973.3,12.74970153]
[1769005356018,0.12803109,2974.4,2972.9,3.91864302]
[1769005356341,0.12803109,2974.4,2973.1,12.88358281]
[1769005356547,3.49005421,2974.4,2973.0,0.3919643]
[1769005356708,3.49005421,2974.4,2972.9,0.555]
[1769005356904,0.12803109,2974.4,2973.0,12.91721886]
[1769005357109,0.556,2975.5,2973.0,12.88358281]
[1769005357317,0.556,2975.5,2973.0,13.43858281]
[1769005357318,6.75541698,2975.4,2973.0,13.43858281]
[1769005357534,6.7217853,2975.4,2973.0,13.43858281]
[1769005357720,6.7217853,2975.4,2973.2,12.88358281]
[1769005357721,0.76141021,2975.3,2973.2,12.88358281]